{"text_format":"3","workbook":"xlsx","n_sheets":4,"sheets":["Aloitus","Kuukauden budjettiraportti","Kuukauden menot","Muut tiedot"],"not_rendered":{"charts":1,"defined_names":4,"pivot_tables":2},"read":"whole","date_system":"1900"}

{"sheet":"Aloitus","index":0,"n_rows":8,"n_cols":2,"rows_kept":8}
[null,"TIETOJA TÄSTÄ MALLISTA"]
[null,"Tämän työkirjan avulla voit seurata menojasi ja luoda perheen budjetin."]
[null,"Kirjoita arvioidut ja todelliset tulot eri lähteistä Kuukausittainen budjettiraportti -laskentataulukkoon ja eri luokkien arvioidut ja todelliset menot Kuukauden menot -laskentataulukkoon."]
[null,"Arvioitu ja todellinen saldo ja erotus lasketaan automaattisesti, ja Kuukausittainen budjettiraportti -laskentataulukon Budjetin yhteenveto- ja Budjetin yleiskatsaus -taulukot päivittyvät automaattisesti."]
[null,"Voit muokata luokkia tai lisätä taulukkoon luokan Muut tiedot -laskentataulukossa."]
[null,"Huomautus: "]
[null,"Lisäohjeita on sarakkeen A KUUKAUSITTAINEN BUDJETTIRAPORTTI -laskentataulukossa ja solussa A1 KUUKAUDEN MENOT- ja MUUT TIEDOT -laskentataulukoissa. Tämä teksti on piilotettu tarkoituksella. Jos haluat poistaa tekstin, valitse sarake A tai solu A1 ja valitse sitten POISTA. Jos haluat tuoda tekstin näkyviin, valitse sarake A tai solu A1 ja muuta sitten fonttiväriä."]
[null,"Jos haluat lisätietoja jostakin taulukosta, paina kyseisessä taulukossa VAIHTO ja sitten F10, valitse TAULUKKO-vaihtoehto ja valitse sitten VAIHTOEHTOINEN TEKSTI. Jos kyseessä on Pivot-taulukko, paina taulukossa VAIHTO ja sitten F10, valitse PIVOT-TAULUKON ASETUKSET ja valitse sitten VAIHTOEHTOINEN TEKSTI -välilehti."]

{"sheet":"Kuukauden budjettiraportti","index":1,"n_rows":34,"n_cols":14,"rows_kept":34,"merged":[[0,1,0,4],[0,5,0,7],[0,12,0,13],[1,9,5,13],[2,2,2,5],[3,2,3,5],[4,2,4,5],[7,1,10,1],[7,5,10,5],[7,6,10,6],[8,9,31,9],[12,1,16,1],[12,5,16,5],[12,6,16,6],[19,1,34,6]]}
["Luo kuukausittainen budjettiraporttisi tässä laskentataulukossa. Tämän laskentataulukon otsikko on solussa oikealla ja alaotsikko solussa J1. Siirry Kuukauden menot -laskentataulukkoon valitsemalla solu F1. Tämän sarakkeen soluissa on muita hyödyllisiä ohjeita tämän laskentataulukon käyttöön.","Budjetin yleiskatsaus",{"$nulls":3},"Kuukausittaiset kulut",{"$nulls":3},"Budjetin yhteenveto",null,null,"Tässä solussa on yksi vihreä vehnäntähkä."]
["Saldo-selite on solussa oikealla. Pivot-taulukon osittajat taulukon tietojen suodattamiseen ovat soluissa J2–N6. Voit valita useita luokkia pitämällä Control-näppäintä painettuna.","Saldo",{"$nulls":7},"Tässä solussa on luokka osittaja Pivot-taulukon tietojen suodattamiseen valitun luokan mukaan."]
["Arvioitu saldo -selite on solussa oikealla. Arvioitu saldo lasketaan automaattisesti soluun G3.","Arvioitu saldo","(Arvioidut vähennettyinä kuluilla)",{"$nulls":3},{"$f":"D17-SUM(BudjetinTiedot[Arvioidut kustannukset])","v":{"v":1585,"d":"1,585 €"}}]
["Todellinen saldo -selite on solussa oikealla. Toteutunut saldo lasketaan automaattisesti soluun G4.","Todellinen saldo ","(Todelliset vähennettyinä kuluilla)",{"$nulls":3},{"$f":"D11-SUM(BudjetinTiedot[Todelliset kustannukset])","v":{"v":1740,"d":"1,740 €"}}]
["Erotus-selite on solussa oikealla. Erotus lasketaan automaattisesti soluun G5. Seuraava ohje on solussa A7.","Erotus","(Todelliset vähennettyinä arvioiduilla tuloilla)",{"$nulls":3},{"$f":"G4-G3","v":{"v":155,"d":"155 €"}}]
[]
["Tulot-selite on solussa oikealla, Menot-selite solussa F7 ja vinkki budjetin yhteenvetoon solussa J7.","Tulot",{"$nulls":3},"Kulut",{"$nulls":3},"Valitse alla oleva Pivot-taulukko ja päivitä sitten valitsemalla Päivitä Analysoi-välilehdessä."]
["Todelliset tulot -otsikko on solussa oikealla ja Todelliset menot -otsikko solussa F8. Kirjoita tulot 1 soluun D8. Todelliset kulut lasketaan automaattisesti solussa G8.","TODELLISET","Tulot 1",{"v":5800,"d":"5,800 €"},null,"TODELLISET",{"$f":"SUM(BudjetinTiedot[Todelliset kustannukset])","v":{"v":7860,"d":"7,860 €"}}]
["Kirjoita tulot 2 soluun D9. Kuva on solussa J9. Pivot-taulukko alkaa solusta K9. Päivitä Pivot-taulukko valitsemalla Analysoi-välilehdessä Päivitä.",null,"Tulot 2",{"v":2300,"d":"2,300 €"},{"$nulls":5},"Kuva on tässä solussa.","Luokka","Arvioidut kustannukset ","Todelliset kustannukset ","Erotus "]
["Kirjoita lisätulot soluun D10.",null,"Lisätulot",{"v":1500,"d":"1,500 €"},{"$nulls":6},"Asuminen",{"v":2830,"d":"2,830.00 €"},{"v":2702,"d":"2,702.00 €"},{"v":128,"d":"128.00 €"}]
["Tulot yhteensä -selite on solussa C11, ja Tulot yhteensä lasketaan automaattisesti soluun D11. Seuraava ohje on solussa A13.",null,"Tulot yhteensä",{"$f":"SUM(D8:D10)","v":{"v":9600,"d":"9,600 €"}}]
[{"$nulls":10},"Hyvinvointi",{"v":150,"d":"150.00 €"},{"v":140,"d":"140.00 €"},{"v":10,"d":"10.00 €"}]
["Arvioidut tulot -otsikko on solussa oikealla ja Arvioidut menot -otsikko solussa F13. Arvioidut kulut lasketaan automaattisesti solussa G13.","ARVIOIDUT",{"$nulls":3},"ARVIOIDUT",{"$f":"SUM(BudjetinTiedot[Arvioidut kustannukset])","v":{"v":7915,"d":"7,915 €"}}]
["Kirjoita arvioitu tulot 1 soluun D14.",null,"Tulot 1",{"v":6000,"d":"6,000 €"},{"$nulls":6},"Lahjat ja lahjoitukset",{"v":100,"d":"100.00 €"},{"v":125,"d":"125.00 €"},{"v":-25,"d":"-25.00 €"}]
["Kirjoita arvioitu tulot 2 soluun D15.",null,"Tulot 2",{"v":1000,"d":"1,000 €"}]
["Kirjoita lisätulot soluun D16.",null,"Lisätulot",{"v":2500,"d":"2,500 €"},{"$nulls":6},"Lainat",{"v":200,"d":"200.00 €"},{"v":200,"d":"200.00 €"},{"v":0,"d":"0.00 €"}]
["Tulot yhteensä -selite on solussa C17, ja Tulot yhteensä lasketaan automaattisesti soluun D17. Seuraava ohje on solussa A20.",null,"Tulot yhteensä",{"$f":"SUM(D14:D16)","v":{"v":9500,"d":"9,500 €"}}]
[{"$nulls":10},"Lapset",{"v":140,"d":"140.00 €"},{"v":140,"d":"140.00 €"},{"v":0,"d":"0.00 €"}]
[]
["Solussa oikealla on pylväskaavio, jossa näkyy kulujen prosenttiosuudet luokittain.","Tässä solussa on pylväskaavio, jossa näkyy kulujen prosenttiosuudet luokittain.",{"$nulls":8},"Lemmikkieläimet",{"v":170,"d":"170.00 €"},{"v":100,"d":"100.00 €"},{"v":70,"d":"70.00 €"}]
[]
[{"$nulls":10},"Liikenne",{"v":1425,"d":"1,425.00 €"},{"v":1375,"d":"1,375.00 €"},{"v":50,"d":"50.00 €"}]
[]
[{"$nulls":10},"Ruokakulut",{"v":1100,"d":"1,100.00 €"},{"v":1320,"d":"1,320.00 €"},{"v":-220,"d":"-220.00 €"}]
[]
[{"$nulls":10},"Säästöt tai sijoitukset",{"v":200,"d":"200.00 €"},{"v":200,"d":"200.00 €"},{"v":0,"d":"0.00 €"}]
[]
[{"$nulls":10},"Vakuutukset",{"v":900,"d":"900.00 €"},{"v":900,"d":"900.00 €"},{"v":0,"d":"0.00 €"}]
[]
[{"$nulls":10},"Verot",{"v":300,"d":"300.00 €"},{"v":300,"d":"300.00 €"},{"v":0,"d":"0.00 €"}]
[]
[{"$nulls":10},"Viihde",{"v":400,"d":"400.00 €"},{"v":358,"d":"358.00 €"},{"v":42,"d":"42.00 €"}]
[]
[{"$nulls":10},"Kaikki yhteensä",{"v":7915,"d":"7,915.00 €"},{"v":7860,"d":"7,860.00 €"},{"v":55,"d":"55.00 €"}]

{"sheet":"Kuukauden menot","index":2,"n_rows":62,"n_cols":7,"rows_kept":62,"merged":[[0,1,0,4],[0,5,0,6]]}
["Laske kuukauden menot tässä laskentataulukossa. Tämän laskentataulukon otsikko on oikealla olevassa solussa. Siirry Kuukauden budjettiraportti -laskentataulukkoon valitsemalla solu F1.","Kuukauden menot",{"$nulls":3},"Kuukausittainen budjettiraportti"]
[" Kirjoita tietoja Budjetin tiedot -taulukkoon alkaen oikealla olevasta solusta.","Kuvaus","Luokka","Arvioidut kustannukset","Todelliset kustannukset","Erotus","Todellisten kustannusten yleiskatsaus"]
[null,"Vapaa-ajan toiminta","Lapset",{"v":40,"d":"40 €"},{"v":40,"d":"40 €"},{"$f":"BudjetinTiedot[[#This Row],[Arvioidut kustannukset]]-BudjetinTiedot[[#This Row],[Todelliset kustannukset]]","v":{"v":0,"d":"0 €"}},{"$f":"BudjetinTiedot[[#This Row],[Todelliset kustannukset]]","v":{"v":40,"d":"40 €"}}]
[null,"Terveydenhoito","Lapset",null,null,{"$f":"BudjetinTiedot[[#This Row],[Arvioidut kustannukset]]-BudjetinTiedot[[#This Row],[Todelliset kustannukset]]","v":{"v":0,"d":"0 €"}},{"$f":"BudjetinTiedot[[#This Row],[Todelliset kustannukset]]","v":{"v":0,"d":"0 €"}}]
[null,"Koulutarvikkeet","Lapset",null,null,{"$f":"BudjetinTiedot[[#This Row],[Arvioidut kustannukset]]-BudjetinTiedot[[#This Row],[Todelliset kustannukset]]","v":{"v":0,"d":"0 €"}},{"$f":"BudjetinTiedot[[#This Row],[Todelliset kustannukset]]","v":{"v":0,"d":"0 €"}}]
[null,"Lukukausimaksut","Lapset",{"v":100,"d":"100 €"},{"v":100,"d":"100 €"},{"$f":"BudjetinTiedot[[#This Row],[Arvioidut kustannukset]]-BudjetinTiedot[[#This Row],[Todelliset kustannukset]]","v":{"v":0,"d":"0 €"}},{"$f":"BudjetinTiedot[[#This Row],[Todelliset kustannukset]]","v":{"v":100,"d":"100 €"}}]
[null,"Konsertit","Viihde",{"v":50,"d":"50 €"},{"v":40,"d":"40 €"},{"$f":"BudjetinTiedot[[#This Row],[Arvioidut kustannukset]]-BudjetinTiedot[[#This Row],[Todelliset kustannukset]]","v":{"v":10,"d":"10 €"}},{"$f":"BudjetinTiedot[[#This Row],[Todelliset kustannukset]]","v":{"v":40,"d":"40 €"}}]
[null,"Teatteri","Viihde",{"v":200,"d":"200 €"},{"v":150,"d":"150 €"},{"$f":"BudjetinTiedot[[#This Row],[Arvioidut kustannukset]]-BudjetinTiedot[[#This Row],[Todelliset kustannukset]]","v":{"v":50,"d":"50 €"}},{"$f":"BudjetinTiedot[[#This Row],[Todelliset kustannukset]]","v":{"v":150,"d":"150 €"}}]
[null,"Elokuvat","Viihde",{"v":50,"d":"50 €"},{"v":28,"d":"28 €"},{"$f":"BudjetinTiedot[[#This Row],[Arvioidut kustannukset]]-BudjetinTiedot[[#This Row],[Todelliset kustannukset]]","v":{"v":22,"d":"22 €"}},{"$f":"BudjetinTiedot[[#This Row],[Todelliset kustannukset]]","v":{"v":28,"d":"28 €"}}]
[null,"Musiikki (CD-levyt, lataukset jne.)","Viihde",{"v":50,"d":"50 €"},{"v":30,"d":"30 €"},{"$f":"BudjetinTiedot[[#This Row],[Arvioidut kustannukset]]-BudjetinTiedot[[#This Row],[Todelliset kustannukset]]","v":{"v":20,"d":"20 €"}},{"$f":"BudjetinTiedot[[#This Row],[Todelliset kustannukset]]","v":{"v":30,"d":"30 €"}}]
[null,"Urheilutapahtumat","Viihde",{"v":0,"d":"0 €"},{"v":40,"d":"40 €"},{"$f":"BudjetinTiedot[[#This Row],[Arvioidut kustannukset]]-BudjetinTiedot[[#This Row],[Todelliset kustannukset]]","v":{"v":-40,"d":"-40 €"}},{"$f":"BudjetinTiedot[[#This Row],[Todelliset kustannukset]]","v":{"v":40,"d":"40 €"}}]
[null,"Video/DVD (osto)","Viihde",{"v":20,"d":"20 €"},{"v":50,"d":"50 €"},{"$f":"BudjetinTiedot[[#This Row],[Arvioidut kustannukset]]-BudjetinTiedot[[#This Row],[Todelliset kustannukset]]","v":{"v":-30,"d":"-30 €"}},{"$f":"BudjetinTiedot[[#This Row],[Todelliset kustannukset]]","v":{"v":50,"d":"50 €"}}]
[null,"Video/DVD (vuokraus)","Viihde",{"v":30,"d":"30 €"},{"v":20,"d":"20 €"},{"$f":"BudjetinTiedot[[#This Row],[Arvioidut kustannukset]]-BudjetinTiedot[[#This Row],[Todelliset kustannukset]]","v":{"v":10,"d":"10 €"}},{"$f":"BudjetinTiedot[[#This Row],[Todelliset kustannukset]]","v":{"v":20,"d":"20 €"}}]
[null,"Ruokailu ulkona","Ruokakulut",{"v":1000,"d":"1,000 €"},{"v":1200,"d":"1,200 €"},{"$f":"BudjetinTiedot[[#This Row],[Arvioidut kustannukset]]-BudjetinTiedot[[#This Row],[Todelliset kustannukset]]","v":{"v":-200,"d":"-200 €"}},{"$f":"BudjetinTiedot[[#This Row],[Todelliset kustannukset]]","v":{"v":1200,"d":"1,200 €"}}]
[null,"Ruokatarvikkeet","Ruokakulut",{"v":100,"d":"100 €"},{"v":120,"d":"120 €"},{"$f":"BudjetinTiedot[[#This Row],[Arvioidut kustannukset]]-BudjetinTiedot[[#This Row],[Todelliset kustannukset]]","v":{"v":-20,"d":"-20 €"}},{"$f":"BudjetinTiedot[[#This Row],[Todelliset kustannukset]]","v":{"v":120,"d":"120 €"}}]
[null,"Lahjoitukset 1","Lahjat ja lahjoitukset",{"v":75,"d":"75 €"},{"v":100,"d":"100 €"},{"$f":"BudjetinTiedot[[#This Row],[Arvioidut kustannukset]]-BudjetinTiedot[[#This Row],[Todelliset kustannukset]]","v":{"v":-25,"d":"-25 €"}},{"$f":"BudjetinTiedot[[#This Row],[Todelliset kustannukset]]","v":{"v":100,"d":"100 €"}}]
[null,"Lahjoitukset 2","Lahjat ja lahjoitukset",{"v":25,"d":"25 €"},{"v":25,"d":"25 €"},{"$f":"BudjetinTiedot[[#This Row],[Arvioidut kustannukset]]-BudjetinTiedot[[#This Row],[Todelliset kustannukset]]","v":{"v":0,"d":"0 €"}},{"$f":"BudjetinTiedot[[#This Row],[Todelliset kustannukset]]","v":{"v":25,"d":"25 €"}}]
[null,"Lahja 1","Lahjat ja lahjoitukset",null,null,{"$f":"BudjetinTiedot[[#This Row],[Arvioidut kustannukset]]-BudjetinTiedot[[#This Row],[Todelliset kustannukset]]","v":{"v":0,"d":"0 €"}},{"$f":"BudjetinTiedot[[#This Row],[Todelliset kustannukset]]","v":{"v":0,"d":"0 €"}}]
[null,"Lahja 2","Lahjat ja lahjoitukset",null,null,{"$f":"BudjetinTiedot[[#This Row],[Arvioidut kustannukset]]-BudjetinTiedot[[#This Row],[Todelliset kustannukset]]","v":{"v":0,"d":"0 €"}},{"$f":"BudjetinTiedot[[#This Row],[Todelliset kustannukset]]","v":{"v":0,"d":"0 €"}}]
[null,"Kaapeli-TV/Satelliitti-TV","Asuminen",{"v":100,"d":"100 €"},{"v":100,"d":"100 €"},{"$f":"BudjetinTiedot[[#This Row],[Arvioidut kustannukset]]-BudjetinTiedot[[#This Row],[Todelliset kustannukset]]","v":{"v":0,"d":"0 €"}},{"$f":"BudjetinTiedot[[#This Row],[Todelliset kustannukset]]","v":{"v":100,"d":"100 €"}}]
[null,"Sähkö","Asuminen",{"v":45,"d":"45 €"},{"v":50,"d":"50 €"},{"$f":"BudjetinTiedot[[#This Row],[Arvioidut kustannukset]]-BudjetinTiedot[[#This Row],[Todelliset kustannukset]]","v":{"v":-5,"d":"-5 €"}},{"$f":"BudjetinTiedot[[#This Row],[Todelliset kustannukset]]","v":{"v":50,"d":"50 €"}}]
[null,"Kaasu","Asuminen",{"v":300,"d":"300 €"},{"v":400,"d":"400 €"},{"$f":"BudjetinTiedot[[#This Row],[Arvioidut kustannukset]]-BudjetinTiedot[[#This Row],[Todelliset kustannukset]]","v":{"v":-100,"d":"-100 €"}},{"$f":"BudjetinTiedot[[#This Row],[Todelliset kustannukset]]","v":{"v":400,"d":"400 €"}}]
[null,"Kodin siivouspalvelu","Asuminen",{"v":200,"d":"200 €"},null,{"$f":"BudjetinTiedot[[#This Row],[Arvioidut kustannukset]]-BudjetinTiedot[[#This Row],[Todelliset kustannukset]]","v":{"v":200,"d":"200 €"}},{"$f":"BudjetinTiedot[[#This Row],[Todelliset kustannukset]]","v":{"v":0,"d":"0 €"}}]
[null,"Ylläpito","Asuminen",{"v":200,"d":"200 €"},{"v":150,"d":"150 €"},{"$f":"BudjetinTiedot[[#This Row],[Arvioidut kustannukset]]-BudjetinTiedot[[#This Row],[Todelliset kustannukset]]","v":{"v":50,"d":"50 €"}},{"$f":"BudjetinTiedot[[#This Row],[Todelliset kustannukset]]","v":{"v":150,"d":"150 €"}}]
[null,"Asuntolaina tai vuokra","Asuminen",{"v":1700,"d":"1,700 €"},{"v":1700,"d":"1,700 €"},{"$f":"BudjetinTiedot[[#This Row],[Arvioidut kustannukset]]-BudjetinTiedot[[#This Row],[Todelliset kustannukset]]","v":{"v":0,"d":"0 €"}},{"$f":"BudjetinTiedot[[#This Row],[Todelliset kustannukset]]","v":{"v":1700,"d":"1,700 €"}}]
[null,"Lämmityskulut","Asuminen",null,null,{"$f":"BudjetinTiedot[[#This Row],[Arvioidut kustannukset]]-BudjetinTiedot[[#This Row],[Todelliset kustannukset]]","v":{"v":0,"d":"0 €"}},{"$f":"BudjetinTiedot[[#This Row],[Todelliset kustannukset]]","v":{"v":0,"d":"0 €"}}]
[null,"Internet","Asuminen",{"v":100,"d":"100 €"},{"v":100,"d":"100 €"},{"$f":"BudjetinTiedot[[#This Row],[Arvioidut kustannukset]]-BudjetinTiedot[[#This Row],[Todelliset kustannukset]]","v":{"v":0,"d":"0 €"}},{"$f":"BudjetinTiedot[[#This Row],[Todelliset kustannukset]]","v":{"v":100,"d":"100 €"}}]
[null,"Puhelin (matkapuhelin)","Asuminen",{"v":60,"d":"60 €"},{"v":60,"d":"60 €"},{"$f":"BudjetinTiedot[[#This Row],[Arvioidut kustannukset]]-BudjetinTiedot[[#This Row],[Todelliset kustannukset]]","v":{"v":0,"d":"0 €"}},{"$f":"BudjetinTiedot[[#This Row],[Todelliset kustannukset]]","v":{"v":60,"d":"60 €"}}]
[null,"Puhelin (koti)","Asuminen",{"v":35,"d":"35 €"},{"v":39,"d":"39 €"},{"$f":"BudjetinTiedot[[#This Row],[Arvioidut kustannukset]]-BudjetinTiedot[[#This Row],[Todelliset kustannukset]]","v":{"v":-4,"d":"-4 €"}},{"$f":"BudjetinTiedot[[#This Row],[Todelliset kustannukset]]","v":{"v":39,"d":"39 €"}}]
[null,"Tarvikkeet","Asuminen",{"v":40,"d":"40 €"},{"v":55,"d":"55 €"},{"$f":"BudjetinTiedot[[#This Row],[Arvioidut kustannukset]]-BudjetinTiedot[[#This Row],[Todelliset kustannukset]]","v":{"v":-15,"d":"-15 €"}},{"$f":"BudjetinTiedot[[#This Row],[Todelliset kustannukset]]","v":{"v":55,"d":"55 €"}}]
[null,"Jäte- ja kierrätysmaksut","Asuminen",{"v":25,"d":"25 €"},{"v":22,"d":"22 €"},{"$f":"BudjetinTiedot[[#This Row],[Arvioidut kustannukset]]-BudjetinTiedot[[#This Row],[Todelliset kustannukset]]","v":{"v":3,"d":"3 €"}},{"$f":"BudjetinTiedot[[#This Row],[Todelliset kustannukset]]","v":{"v":22,"d":"22 €"}}]
[null,"Vesi ja viemäröinti","Asuminen",{"v":25,"d":"25 €"},{"v":26,"d":"26 €"},{"$f":"BudjetinTiedot[[#This Row],[Arvioidut kustannukset]]-BudjetinTiedot[[#This Row],[Todelliset kustannukset]]","v":{"v":-1,"d":"-1 €"}},{"$f":"BudjetinTiedot[[#This Row],[Todelliset kustannukset]]","v":{"v":26,"d":"26 €"}}]
[null,"Terveys","Vakuutukset",{"v":400,"d":"400 €"},{"v":400,"d":"400 €"},{"$f":"BudjetinTiedot[[#This Row],[Arvioidut kustannukset]]-BudjetinTiedot[[#This Row],[Todelliset kustannukset]]","v":{"v":0,"d":"0 €"}},{"$f":"BudjetinTiedot[[#This Row],[Todelliset kustannukset]]","v":{"v":400,"d":"400 €"}}]
[null,"Koti","Vakuutukset",{"v":400,"d":"400 €"},{"v":400,"d":"400 €"},{"$f":"BudjetinTiedot[[#This Row],[Arvioidut kustannukset]]-BudjetinTiedot[[#This Row],[Todelliset kustannukset]]","v":{"v":0,"d":"0 €"}},{"$f":"BudjetinTiedot[[#This Row],[Todelliset kustannukset]]","v":{"v":400,"d":"400 €"}}]
[null,"Elämä","Vakuutukset",{"v":100,"d":"100 €"},{"v":100,"d":"100 €"},{"$f":"BudjetinTiedot[[#This Row],[Arvioidut kustannukset]]-BudjetinTiedot[[#This Row],[Todelliset kustannukset]]","v":{"v":0,"d":"0 €"}},{"$f":"BudjetinTiedot[[#This Row],[Todelliset kustannukset]]","v":{"v":100,"d":"100 €"}}]
[null,"Luottokortti 1","Lainat",{"v":200,"d":"200 €"},{"v":200,"d":"200 €"},{"$f":"BudjetinTiedot[[#This Row],[Arvioidut kustannukset]]-BudjetinTiedot[[#This Row],[Todelliset kustannukset]]","v":{"v":0,"d":"0 €"}},{"$f":"BudjetinTiedot[[#This Row],[Todelliset kustannukset]]","v":{"v":200,"d":"200 €"}}]
[null,"Luottokortti 2","Lainat",null,null,{"$f":"BudjetinTiedot[[#This Row],[Arvioidut kustannukset]]-BudjetinTiedot[[#This Row],[Todelliset kustannukset]]","v":{"v":0,"d":"0 €"}},{"$f":"BudjetinTiedot[[#This Row],[Todelliset kustannukset]]","v":{"v":0,"d":"0 €"}}]
[null,"Luottokortti 3","Lainat",null,null,{"$f":"BudjetinTiedot[[#This Row],[Arvioidut kustannukset]]-BudjetinTiedot[[#This Row],[Todelliset kustannukset]]","v":{"v":0,"d":"0 €"}},{"$f":"BudjetinTiedot[[#This Row],[Todelliset kustannukset]]","v":{"v":0,"d":"0 €"}}]
[null,"Henkilökohtainen","Lainat",null,null,{"$f":"BudjetinTiedot[[#This Row],[Arvioidut kustannukset]]-BudjetinTiedot[[#This Row],[Todelliset kustannukset]]","v":{"v":0,"d":"0 €"}},{"$f":"BudjetinTiedot[[#This Row],[Todelliset kustannukset]]","v":{"v":0,"d":"0 €"}}]
[null,"Opiskelija","Lainat",null,null,{"$f":"BudjetinTiedot[[#This Row],[Arvioidut kustannukset]]-BudjetinTiedot[[#This Row],[Todelliset kustannukset]]","v":{"v":0,"d":"0 €"}},{"$f":"BudjetinTiedot[[#This Row],[Todelliset kustannukset]]","v":{"v":0,"d":"0 €"}}]
[null,"Vaatteet","Hyvinvointi",{"v":150,"d":"150 €"},{"v":140,"d":"140 €"},{"$f":"BudjetinTiedot[[#This Row],[Arvioidut kustannukset]]-BudjetinTiedot[[#This Row],[Todelliset kustannukset]]","v":{"v":10,"d":"10 €"}},{"$f":"BudjetinTiedot[[#This Row],[Todelliset kustannukset]]","v":{"v":140,"d":"140 €"}}]
[null,"Pesula","Hyvinvointi",null,null,{"$f":"BudjetinTiedot[[#This Row],[Arvioidut kustannukset]]-BudjetinTiedot[[#This Row],[Todelliset kustannukset]]","v":{"v":0,"d":"0 €"}},{"$f":"BudjetinTiedot[[#This Row],[Todelliset kustannukset]]","v":{"v":0,"d":"0 €"}}]
[null,"Kampaamo/kynnet","Hyvinvointi",null,null,{"$f":"BudjetinTiedot[[#This Row],[Arvioidut kustannukset]]-BudjetinTiedot[[#This Row],[Todelliset kustannukset]]","v":{"v":0,"d":"0 €"}},{"$f":"BudjetinTiedot[[#This Row],[Todelliset kustannukset]]","v":{"v":0,"d":"0 €"}}]
[null,"Kuntokeskus","Hyvinvointi",null,null,{"$f":"BudjetinTiedot[[#This Row],[Arvioidut kustannukset]]-BudjetinTiedot[[#This Row],[Todelliset kustannukset]]","v":{"v":0,"d":"0 €"}},{"$f":"BudjetinTiedot[[#This Row],[Todelliset kustannukset]]","v":{"v":0,"d":"0 €"}}]
[null,"Terveydenhoito","Hyvinvointi",null,null,{"$f":"BudjetinTiedot[[#This Row],[Arvioidut kustannukset]]-BudjetinTiedot[[#This Row],[Todelliset kustannukset]]","v":{"v":0,"d":"0 €"}},{"$f":"BudjetinTiedot[[#This Row],[Todelliset kustannukset]]","v":{"v":0,"d":"0 €"}}]
[null,"Ruokakulut","Lemmikkieläimet",{"v":150,"d":"150 €"},{"v":75,"d":"75 €"},{"$f":"BudjetinTiedot[[#This Row],[Arvioidut kustannukset]]-BudjetinTiedot[[#This Row],[Todelliset kustannukset]]","v":{"v":75,"d":"75 €"}},{"$f":"BudjetinTiedot[[#This Row],[Todelliset kustannukset]]","v":{"v":75,"d":"75 €"}}]
[null,"Trimmaus","Lemmikkieläimet",{"v":20,"d":"20 €"},{"v":25,"d":"25 €"},{"$f":"BudjetinTiedot[[#This Row],[Arvioidut kustannukset]]-BudjetinTiedot[[#This Row],[Todelliset kustannukset]]","v":{"v":-5,"d":"-5 €"}},{"$f":"BudjetinTiedot[[#This Row],[Todelliset kustannukset]]","v":{"v":25,"d":"25 €"}}]
[null,"Terveydenhoito","Lemmikkieläimet",null,null,{"$f":"BudjetinTiedot[[#This Row],[Arvioidut kustannukset]]-BudjetinTiedot[[#This Row],[Todelliset kustannukset]]","v":{"v":0,"d":"0 €"}},{"$f":"BudjetinTiedot[[#This Row],[Todelliset kustannukset]]","v":{"v":0,"d":"0 €"}}]
[null,"Lelut","Lemmikkieläimet",null,null,{"$f":"BudjetinTiedot[[#This Row],[Arvioidut kustannukset]]-BudjetinTiedot[[#This Row],[Todelliset kustannukset]]","v":{"v":0,"d":"0 €"}},{"$f":"BudjetinTiedot[[#This Row],[Todelliset kustannukset]]","v":{"v":0,"d":"0 €"}}]
[null,"Sijoitustili","Säästöt tai sijoitukset",{"v":200,"d":"200 €"},{"v":200,"d":"200 €"},{"$f":"BudjetinTiedot[[#This Row],[Arvioidut kustannukset]]-BudjetinTiedot[[#This Row],[Todelliset kustannukset]]","v":{"v":0,"d":"0 €"}},{"$f":"BudjetinTiedot[[#This Row],[Todelliset kustannukset]]","v":{"v":200,"d":"200 €"}}]
[null,"Eläketili","Säästöt tai sijoitukset",null,null,{"$f":"BudjetinTiedot[[#This Row],[Arvioidut kustannukset]]-BudjetinTiedot[[#This Row],[Todelliset kustannukset]]","v":{"v":0,"d":"0 €"}},{"$f":"BudjetinTiedot[[#This Row],[Todelliset kustannukset]]","v":{"v":0,"d":"0 €"}}]
[null,"Liittovaltio","Verot",{"v":300,"d":"300 €"},{"v":300,"d":"300 €"},{"$f":"BudjetinTiedot[[#This Row],[Arvioidut kustannukset]]-BudjetinTiedot[[#This Row],[Todelliset kustannukset]]","v":{"v":0,"d":"0 €"}},{"$f":"BudjetinTiedot[[#This Row],[Todelliset kustannukset]]","v":{"v":300,"d":"300 €"}}]
[null,"Paikallinen","Verot",null,null,{"$f":"BudjetinTiedot[[#This Row],[Arvioidut kustannukset]]-BudjetinTiedot[[#This Row],[Todelliset kustannukset]]","v":{"v":0,"d":"0 €"}},{"$f":"BudjetinTiedot[[#This Row],[Todelliset kustannukset]]","v":{"v":0,"d":"0 €"}}]
[null,"Osavaltio","Verot",null,null,{"$f":"BudjetinTiedot[[#This Row],[Arvioidut kustannukset]]-BudjetinTiedot[[#This Row],[Todelliset kustannukset]]","v":{"v":0,"d":"0 €"}},{"$f":"BudjetinTiedot[[#This Row],[Todelliset kustannukset]]","v":{"v":0,"d":"0 €"}}]
[null,"Linja-auto-/taksimaksu","Liikenne",{"v":100,"d":"100 €"},{"v":150,"d":"150 €"},{"$f":"BudjetinTiedot[[#This Row],[Arvioidut kustannukset]]-BudjetinTiedot[[#This Row],[Todelliset kustannukset]]","v":{"v":-50,"d":"-50 €"}},{"$f":"BudjetinTiedot[[#This Row],[Todelliset kustannukset]]","v":{"v":150,"d":"150 €"}}]
[null,"Polttoaine","Liikenne",{"v":450,"d":"450 €"},{"v":400,"d":"400 €"},{"$f":"BudjetinTiedot[[#This Row],[Arvioidut kustannukset]]-BudjetinTiedot[[#This Row],[Todelliset kustannukset]]","v":{"v":50,"d":"50 €"}},{"$f":"BudjetinTiedot[[#This Row],[Todelliset kustannukset]]","v":{"v":400,"d":"400 €"}}]
[null,"Vakuutukset","Liikenne",{"v":300,"d":"300 €"},{"v":300,"d":"300 €"},{"$f":"BudjetinTiedot[[#This Row],[Arvioidut kustannukset]]-BudjetinTiedot[[#This Row],[Todelliset kustannukset]]","v":{"v":0,"d":"0 €"}},{"$f":"BudjetinTiedot[[#This Row],[Todelliset kustannukset]]","v":{"v":300,"d":"300 €"}}]
[null,"Käyttöoikeudet ","Liikenne",{"v":25,"d":"25 €"},{"v":25,"d":"25 €"},{"$f":"BudjetinTiedot[[#This Row],[Arvioidut kustannukset]]-BudjetinTiedot[[#This Row],[Todelliset kustannukset]]","v":{"v":0,"d":"0 €"}},{"$f":"BudjetinTiedot[[#This Row],[Todelliset kustannukset]]","v":{"v":25,"d":"25 €"}}]
[null,"Ylläpito","Liikenne",{"v":100,"d":"100 €"},{"v":50,"d":"50 €"},{"$f":"BudjetinTiedot[[#This Row],[Arvioidut kustannukset]]-BudjetinTiedot[[#This Row],[Todelliset kustannukset]]","v":{"v":50,"d":"50 €"}},{"$f":"BudjetinTiedot[[#This Row],[Todelliset kustannukset]]","v":{"v":50,"d":"50 €"}}]
[null,"Pysäköintimaksut","Liikenne",null,null,{"$f":"BudjetinTiedot[[#This Row],[Arvioidut kustannukset]]-BudjetinTiedot[[#This Row],[Todelliset kustannukset]]","v":{"v":0,"d":"0 €"}},{"$f":"BudjetinTiedot[[#This Row],[Todelliset kustannukset]]","v":{"v":0,"d":"0 €"}}]
[null,"Ajoneuvomaksu","Liikenne",{"v":450,"d":"450 €"},{"v":450,"d":"450 €"},{"$f":"BudjetinTiedot[[#This Row],[Arvioidut kustannukset]]-BudjetinTiedot[[#This Row],[Todelliset kustannukset]]","v":{"v":0,"d":"0 €"}},{"$f":"BudjetinTiedot[[#This Row],[Todelliset kustannukset]]","v":{"v":450,"d":"450 €"}}]
[null,"Summa",null,{"$f":"SUBTOTAL(109,BudjetinTiedot[Arvioidut kustannukset])","v":{"v":7915,"d":"7,915 €"}},{"$f":"SUBTOTAL(109,BudjetinTiedot[Todelliset kustannukset])","v":{"v":7860,"d":"7,860 €"}},{"$f":"SUBTOTAL(109,BudjetinTiedot[Erotus])","v":{"v":55,"d":"55 €"}}]

{"sheet":"Muut tiedot","index":3,"n_rows":15,"n_cols":5,"rows_kept":15}
["Tämän työkirjan avulla voit muokata Luokka-sarakkeen avattavaa luetteloa Kuukauden menot -laskentataulukon Budjetin tiedot -taulukossa. Voit tehdä tämän muokkaamalla luokkaa tai lisäämällä uuden luokan Budjetin luokkahakutaulukkoon, joka alkaa solusta E2. Budjetin yleiskatsaus -taulukkoon yhdistetty Pivot-taulukko Kuukauden budjettiraportti -laskentataulukossa alkaa solusta B2.","Budjetin yleiskatsaus -Pivot-taulukko",null,null,"Budjetin tiedot -luokkahaku"]
[null,"Luokka","Hinta",null,"Budjetin luokkahaku"]
[null,"Lapset",{"v":140,"d":"140 €"},null,"Lapset"]
[null,"Viihde",{"v":358,"d":"358 €"},null,"Viihde"]
[null,"Ruokakulut",{"v":1320,"d":"1,320 €"},null,"Ruokakulut"]
[null,"Lahjat ja lahjoitukset",{"v":125,"d":"125 €"},null,"Lahjat ja lahjoitukset"]
[null,"Asuminen",{"v":2702,"d":"2,702 €"},null,"Asuminen"]
[null,"Vakuutukset",{"v":900,"d":"900 €"},null,"Vakuutukset"]
[null,"Lainat",{"v":200,"d":"200 €"},null,"Lainat"]
[null,"Hyvinvointi",{"v":140,"d":"140 €"},null,"Hyvinvointi"]
[null,"Lemmikkieläimet",{"v":100,"d":"100 €"},null,"Lemmikkieläimet"]
[null,"Säästöt tai sijoitukset",{"v":200,"d":"200 €"},null,"Säästöt tai sijoitukset"]
[null,"Verot",{"v":300,"d":"300 €"},null,"Verot"]
[null,"Liikenne",{"v":1375,"d":"1,375 €"},null,"Liikenne"]
[null,"Kaikki yhteensä",{"v":7860,"d":"7,860 €"}]